[Event "Austrian Bundesliga 2023-24"]
[Site "Austria"]
[Date "2024.03.20"]
[Round "7.35"]
[White "Saric, Ante"]
[Black "Mesaros, Florian"]
[Result "1-0"]
[ECO "D38"]
[WhiteElo "2505"]
[BlackElo "2414"]
[Annotator "TA"]
[PlyCount "111"]
[EventDate "2023.10.21"]
[EventType "team-tourn"]
[EventCountry "AUT"]
[SourceTitle "playchess.com"]
[Source "ChessBase"]
[SourceQuality "1"]
[TimeControl "40/5400+30:1800+30"]

{[%evp 19,111,0,0,2,32,14,21,12,60,62,69,66,66,74,68,64,74,60,79,81,101,85,97,91,151,113,150,133,147,125,156,141,127,131,129,112,112,102,163,157,163,170,158,166,199,197,207,188,202,125,198,197,269,281,272,274,279,280,313,252,247,0,313,320,390,401,388,395,443,429,439,403,398,191,826,792,910,906,1008,974,1034,1022,947,697,808,0,793,826,797,727,29991,29992,29992,29993]} 1. Nf3 {[%emt 0:00:24]} d5 {[%emt 0:00:18]} 2. d4 {[%emt 0:03:55]} Nf6 {[%emt 0:00:08]} 3. c4 {[%emt 0:00:03]} e6 {[%emt 0:00:10]} 4. Nc3 {[%emt 0:00:42]} Bb4 {[%emt 0:00:24]} 5. e3 {[%emt 0:00:07]} O-O {[%emt 0:05:49]} 6. Bd2 {[%emt 0:00:51]} b6 {[%emt 0:04:40]} 7. Bd3 {[%emt 0:02:14]} dxc4 {[%emt 0:02:48]} 8. Bxc4 {[%emt 0:00:09]} Bb7 {[%emt 0:00:36]} 9. O-O {[%emt 0:00:28]} Nbd7 {[%emt 0:01:44]} 10. Qe2 {[%emt 0:01:33] E52: Nimzo-Indian: Rubinstein: 4...0-0 5 Nf3 d5 6 Bd3 b6.} a6 {[%emt 0:06:28]} 11. Rfd1 {[%emt 0:06:12]} Re8 {[%emt 0:06:14]} 12. a3 {[%emt 0:05:27]} Bd6 {[%emt 0:01:09]} 13. e4 {[%emt 0:01:41]} e5 {[%emt 0:02:12]} (13... b5 $11) 14. d5 $14 {[%emt 0:02:56]} Nf8 $146 {[%emt 0:09:07]} ({Predecessor:} 14... b5 15. Ba2 Nf8 16. Rac1 Ng6 17. g3 h6 18. b4 Bc8 19. Ne1 Nh7 20. Bb3 f5 21. exf5 Bxf5 22. Ne4 Nf4 23. gxf4 {1-0 Perez,Z (1643)-De Ridder,M (1588) ZI-2015-0-02026}) 15. Rac1 {[%emt 0:05:35]} Ng6 {[%emt 0:01:52]} 16. g3 {[%emt 0:02:03]} Bc8 {[%emt 0:05:56]} 17. Ne1 {[%emt 0:03:15]} Qd7 {[%emt 0:11:04]} 18. Nd3 {[%emt 0:18:41]} h6 {[%emt 0:06:36]} 19. f3 {[%emt 0:03:20]} Qe7 {[%emt 0:06:51]} 20. Be3 {[%emt 0:02:46]} Nf8 {[%emt 0:04:17]} 21. Nf2 {[%emt 0:03:26]} g5 {[%emt 0:02:00]} (21... Bb7 $142) 22. Ng4 {[%emt 0:05:42]} Kg7 {[%emt 0:03:05]} 23. Rf1 {[%emt 0:05:21]} Ng6 {[%emt 0:02:48]} 24. Bd3 {[%emt 0:03:23]} Qd7 25. Nxf6 {[%emt 0:04:32]} Kxf6 {[%emt 0:09:20]} 26. Nd1 {[%emt 0:02:18]} Kg7 {[%emt 0:00:31]} 27. Bf2 {[%emt 0:00:25]} h5 {[%emt 0:03:38]} 28. Ne3 {[%emt 0:01:02]} Qe7 {[%emt 0:00:40]} (28... Qh3 $16) 29. Nf5+ $18 {[%emt 0:00:51]} Bxf5 {[%emt 0:00:09]} 30. exf5 {[%emt 0:00:02]} Nf8 {[%emt 0:00:32]} 31. Bxa6 {[%emt 0:00:28]} Nd7 {[%emt 0:00:31]} 32. Bb5 {[%emt 0:01:02]} Red8 {[%emt 0:00:24]} 33. Rfe1 {[%emt 0:02:47]} Qf6 {[%emt 0:00:46]} 34. Bc6 {[%emt 0:01:31]} Ra5 {[%emt 0:00:53]} (34... Qxf5 $16 35. Bxa8 Rxa8) 35. Qd3 $18 {[%emt 0:02:43]} Nb8 {[%emt 0:01:45]} (35... Bc5 $142 36. b4 Bxf2+ 37. Kxf2 Ra7) 36. b4 $18 {[%emt 0:01:20]} Ra7 {[%emt 0:00:19]} 37. Bb5 {[%emt 0:00:25]} Nd7 {[%emt 0:01:02]} 38. Rc4 {[%emt 0:00:14]} Qe7 {[%emt 0:01:04]} 39. Bc6 {[%emt 0:05:34]} Nb8 {[%emt 0:01:19]} 40. Bb5 {[%emt 0:00:00]} Nd7 {[%emt 0:00:00]} 41. h4 {[%emt 0:03:29]} gxh4 {[%emt 0:04:02]} 42. Rxh4 {[%emt 0:00:41]} Nf6 {[%emt 0:00:46]} 43. Bc6 {[%emt 0:00:41]} Rg8 {[%emt 0:02:28]} 44. Qe3 {[%emt 0:10:32]} Kf8 {[%emt 0:01:40]} 45. Kg2 {[%emt 0:06:48]} Rg7 {[%emt 0:01:03]} 46. Reh1 {[%emt 0:00:31]} (46. g4 $142) 46... Qd8 $2 {[%emt 0:02:59]} (46... e4) 47. Rxh5 $18 {[%emt 0:02:33]} Nxh5 {[%emt 0:00:38]} 48. Rxh5 {[%emt 0:00:03]} Qf6 {[%emt 0:02:04]} 49. g4 {[%emt 0:01:46]} e4 {[%emt 0:03:55]} 50. Qxe4 {[%emt 0:00:08]} Rg8 {[%emt 0:03:32]} 51. Qe8+ {[%emt 0:03:44]} Kg7 {[%emt 0:00:06]} 52. Qe4 {[%emt 0:07:56]} Kf8 $1 {[%emt 0:00:16]} 53. Be3 {[%emt 0:01:30]} Qb2+ {[%emt 0:06:43]} 54. Kf1 {[%emt 0:00:01]} Qe5 {[%emt 0:01:55]} 55. Bh6+ {[%emt 0:00:41]} Ke7 {[%emt 0:00:12]} 56. f6+ {[%emt 0:00:06]} 1-0

[Event "Austrian Bundesliga 2023-24"]
[Site "Austria"]
[Date "2024.03.20"]
[Round "7.36"]
[White "Gschnitzer, Adrian"]
[Black "Rogic, Davor"]
[Result "1-0"]
[ECO "C54"]
[WhiteElo "2423"]
[BlackElo "2418"]
[Annotator "TA"]
[PlyCount "131"]
[EventDate "2023.10.21"]
[EventType "team-tourn"]
[EventCountry "AUT"]
[SourceTitle "playchess.com"]
[Source "ChessBase"]
[SourceQuality "1"]
[TimeControl "40/5400+30:1800+30"]

{[%evp 48,131,-183,-200,-216,-212,-210,-199,-210,-223,-211,-189,-114,-155,-147,-161,-129,-165,-126,-119,-78,-70,0,0,161,158,739,731,686,445,600,485,444,408,406,408,406,404,413,0,420,0,413,423,423,423,431,431,527,525,557,542,544,544,637,643,640,622,561,552,561,561,568,568,568,568,568,568,748,749,718,660,766,758,780,779,758,733,972,872,933,829,995,768,961,956]} 1. e4 {[%emt 0:00:04]} e5 {[%emt 0:00:18]} 2. Nf3 {[%emt 0:00:07]} Nc6 {[%emt 0:00:15]} 3. Bc4 {[%emt 0:00:07]} Bc5 {[%emt 0:00:29]} 4. c3 {[%emt 0:00:08]} Nf6 {[%emt 0:00:31]} 5. d3 {[%emt 0:00:09]} d6 {[%emt 0:01:03]} 6. O-O {[%emt 0:00:11]} h6 {[%emt 0:00:50]} 7. Re1 {[%emt 0:01:25]} O-O {[%emt 0:01:26]} 8. h3 {[%emt 0:00:42]} Bb6 {[%emt 0:01:24]} 9. a4 {[%emt 0:05:24]} a5 {[%emt 0:04:25]} 10. Na3 {[%emt 0:06:25]} Ne7 {[%emt 0:02:20]} 11. Nh4 {[%emt 0:09:45]} c6 {[%emt 0:10:05]} 12. Qf3 {[%emt 0:01:53]} Nh7 {[%emt 0:05:21]} 13. Ba2 {[%emt 0:08:23]} Bc7 {[%emt 0:08:30]} 14. Qg3 {[%emt 0:08:27]} Kh8 {[%emt 0:01:57]} 15. Nc4 {[%emt 0:06:03]} g5 {[%emt 0:02:24]} 16. Nf3 {[%emt 0:01:33]} f5 {[%emt 0:06:03]} 17. exf5 {[%emt 0:00:29]} Nxf5 {[%emt 0:04:24]} 18. Qh2 {[%emt 0:00:25]} Qf6 {[%emt 0:03:27]} 19. Re2 {[%emt 0:02:34]} Bd7 {[%emt 0:05:08]} 20. Bd2 {[%emt 0:01:42]} Rae8 {[%emt 0:02:00]} 21. Rae1 {[%emt 0:02:53]} Be6 {[%emt 0:07:40]} 22. Bb1 {[%emt 0:02:16]} Bd5 {[%emt 0:02:07]} 23. Nd4 {[%emt 0:02:49]} Nh4 {[%emt 0:03:29]} 24. Ne3 {[%emt 0:01:45]} Bxg2 {[%emt 0:08:17]} (24... exd4 25. Nxd5 cxd5 26. Rxe8) 25. Nxg2 {[%emt 0:00:41]} exd4 {[%emt 0:00:12]} 26. Nxh4 {[%emt 0:01:15]} Rxe2 {[%emt 0:00:08]} 27. Ng6+ {[%emt 0:08:03]} Qxg6 {[%emt 0:00:06]} 28. Rxe2 {[%emt 0:00:06]} Qh5 {[%emt 0:06:23]} 29. Re1 {[%emt 0:02:20]} Qf7 {[%emt 0:01:05]} ({Black should try} 29... Rf3 $19 30. Qg2 Rxh3 (30... Qxh3 31. Re8+ Kg7 32. Re7+ Kg6 33. Qxh3 $18) 31. Re8+ Kg7 (31... Qxe8 $2 32. Qxh3 Kg7 33. Bc2 $19)) 30. cxd4 {[%emt 0:02:01]} d5 {[%emt 0:00:18]} 31. Qg2 {[%emt 0:00:09]} Nf6 {[%emt 0:03:35]} 32. Qf3 {[%emt 0:03:38]} Qd7 {[%emt 0:00:31]} 33. Bc2 {[%emt 0:02:08]} Rf7 {[%emt 0:00:59]} 34. Bd1 {[%emt 0:01:45] [#]} Ne4 {[%emt 0:02:13]} ({Better is} 34... Ng8 $1 $15 35. Qg2 Rf8 (35... Nf6 36. Bg4 $11)) 35. Qh5 $11 {[%emt 0:00:32]} Qf5 $2 {[%emt 0:01:35] [#]} (35... Nxd2 $2 36. Qxh6+ Kg8 37. Re6 $18) (35... Rxf2 $2 36. Rxe4 (36. dxe4 Rxd2 37. Qxh6+ Qh7 $11) 36... Qd6 (36... Rxd2 $2 37. Qxh6+ Kg8 38. Bg4 $18) 37. Qe8+ (37. Kxf2 Qh2+ 38. Kf3 Qg3+ 39. Ke2 Qg2+ 40. Ke3 Qg1+ 41. Ke2 Qg2+ 42. Ke3 Qg1+ 43. Ke2 Qg2+ $11) 37... Rf8 38. Qe5+ Qxe5 39. Rxe5 Bxe5 40. dxe5 $18) (35... Nxf2 $11 {and Black stays safe.} 36. Qxh6+ (36. Bxg5 $2 Nxh3+ 37. Kh1 Nxg5 $19) 36... Kg8 37. Qg6+ Kf8 38. Bb4+ (38. Qh6+ Kg8 $11) 38... axb4 39. Qh6+ Kg8 40. Qg6+ Kf8 41. Qh6+ Kg8 42. Qg6+ Kf8) 36. f4 $1 $18 {[%emt 0:03:23]} Nxd2 $2 {[%emt 0:01:29]} (36... Nd6 $16) 37. Qxh6+ $18 {[%emt 0:01:28]} Kg8 {[%emt 0:00:05]} 38. Re8+ {[%emt 0:01:04]} Rf8 {[%emt 0:00:05]} 39. Bg4 {[%emt 0:01:15]} Qxg4+ {[%emt 0:02:11]} (39... Qxf4 40. Be6+) (39... Nf3+ $2 40. Kf2 Rxe8 41. Bxf5) 40. hxg4 {[%emt 0:00:00]} Rxe8 {[%emt 0:00:00]} 41. f5 {[%emt 0:07:22]} ({Inferior is} 41. fxg5 Re2 $11) (41. Qxg5+ Kf7 42. Qh5+ Ke7 $16) 41... Bd8 {[%emt 0:10:23]} 42. Kf2 {[%emt 0:09:53]} Rf8 {[%emt 0:01:16]} (42... Kf7 43. Qg6+ Ke7 (43... Kf8 $2 44. f6 $18) 44. Qxg5+ Kd7 45. Qxd2 $18) 43. Qg6+ {[%emt 0:01:32]} Kh8 {[%emt 0:00:05]} 44. Qh6+ {[%emt 0:00:09]} Kg8 {[%emt 0:00:01] [#]} 45. Qe6+ $1 {[%emt 0:00:08]} Kh8 {[%emt 0:04:04]} ({But not} 45... Kg7 46. Qd7+ Kf6 47. Qxb7) 46. Qe1 {[%emt 0:02:02]} Nb3 {[%emt 0:02:36]} 47. Qc3 {[%emt 0:00:25]} Na1 {[%emt 0:01:25]} 48. Qa3 {[%emt 0:01:05]} Re8 {[%emt 0:00:07]} 49. Qxa1 {[%emt 0:00:25]} Kg7 {[%emt 0:01:28]} 50. Qa3 {[%emt 0:03:11]} Be7 {[%emt 0:02:44]} 51. Qc3 {[%emt 0:02:19]} Bf6 {[%emt 0:01:26]} 52. Kf1 {[%emt 0:02:44]} Re7 {[%emt 0:00:47]} 53. Qd2 {[%emt 0:05:19]} Kf7 {[%emt 0:00:49]} 54. Qh2 {[%emt 0:01:46]} Kg7 {[%emt 0:00:42]} 55. Qh5 {[%emt 0:00:15]} Rf7 {[%emt 0:00:04]} 56. Ke2 {[%emt 0:00:53]} Kf8 {[%emt 0:00:54]} 57. Kd2 {[%emt 0:00:29]} Ke7 {[%emt 0:01:14]} 58. Qh2 {[%emt 0:00:50]} Kf8 {[%emt 0:01:09]} 59. Kc3 {[%emt 0:01:03]} Kg7 {[%emt 0:00:49]} 60. Qd6 {[%emt 0:00:47]} Kg8 {[%emt 0:01:26]} 61. Qc5 {[%emt 0:01:18]} Bd8 {[%emt 0:00:20]} 62. Qa7 {[%emt 0:02:26]} Rd7 {[%emt 0:04:07]} 63. Qb8 {[%emt 0:00:49]} Kf8 {[%emt 0:00:37]} 64. Qe5 {[%emt 0:00:36]} Rf7 {[%emt 0:00:12]} 65. Qh8+ {[%emt 0:00:38]} Ke7 {[%emt 0:00:04]} 66. Qg8 {[%emt 0:00:20]} 1-0

[Event "Austrian Bundesliga 2023-24"]
[Site "Austria"]
[Date "2024.03.21"]
[Round "8.1"]
[White "Ragger, Markus"]
[Black "Markus, Robert"]
[Result "1/2-1/2"]
[ECO "E94"]
[WhiteElo "2605"]
[BlackElo "2595"]
[Annotator "TA"]
[PlyCount "46"]
[EventDate "2023.10.21"]
[EventType "team-tourn"]
[EventCountry "AUT"]
[SourceTitle "playchess.com"]
[Source "ChessBase"]
[SourceQuality "1"]
[TimeControl "40/5400+30:1800+30"]

{[%evp 16,46,59,36,51,52,45,36,57,41,45,44,45,49,52,42,41,42,39,21,42,35,42,30,47,0,33,0,32,0,43,0,43]} 1. Nf3 {[%emt 0:00:04]} Nf6 {[%emt 0:00:09]} 2. c4 {[%emt 0:00:02]} d6 {[%emt 0:01:27]} 3. d4 {[%emt 0:00:06]} Nbd7 {[%emt 0:00:09]} 4. Nc3 {[%emt 0:00:07]} g6 {[%emt 0:00:23]} 5. e4 {[%emt 0:00:06]} e5 {[%emt 0:00:07]} 6. Be2 {[%emt 0:00:21]} Bg7 {[%emt 0:00:09]} 7. O-O {[%emt 0:00:09]} O-O {[%emt 0:00:06]} 8. Be3 {[%emt 0:00:09]} Qe7 {[%emt 0:01:34]} 9. Qc2 {[%emt 0:00:45]} exd4 {[%emt 0:00:38]} 10. Nxd4 {[%emt 0:00:17]} c6 {[%emt 0:00:06]} 11. Rad1 {[%emt 0:02:25]} a5 {[%emt 0:03:24] Weiß steht etwas besser.} 12. Rfe1 {[%emt 0:20:50]} Nc5 {[%emt 0:12:37]} 13. Bg5 {[%emt 0:05:58]} Re8 {[%emt 0:05:11]} 14. Bf1 {[%emt 0:09:32]} Qf8 {[%emt 0:02:57]} 15. f3 {[%emt 0:06:43]} Nfd7 {[%emt 0:01:11]} 16. Qd2 {[%emt 0:05:00]} a4 {[%emt 0:07:40]} 17. Nc2 {[%emt 0:05:24]} Ra6 {[%emt 0:17:05]} 18. Be3 {[%emt 0:03:05]} (18. Qxd6 Qxd6 19. Rxd6 f5 $16 (19... a3 20. Bc1 $11)) 18... h5 {[%emt 0:02:47]} 19. Nb4 {[%emt 0:07:09]} (19. Qxd6 Qxd6 20. Rxd6 a3 $11) 19... Ra8 {[%emt 0:01:05]} 20. Nc2 {[%emt 0:00:08]} ({Lieber nicht} 20. Qxd6 Qxd6 21. Rxd6 a3 $17) 20... Ra6 {[%emt 0:00:21]} 21. Nb4 {[%emt 0:00:15]} ({Ein No Go ist} 21. Qxd6 Qxd6 22. Rxd6 a3 $15) 21... Ra8 {[%emt 0:00:08]} 22. Nc2 {[%emt 0:00:10]} (22. Qxd6 Qxd6 23. Rxd6 a3 $19) 22... Ra6 {[%emt 0:00:05]} 23. Nb4 {[%emt 0:00:16]} ({Natürlich nicht} 23. Qxd6 Qxd6 24. Rxd6 a3 $11) 23... Ra8 $1 {Gewichteter Fehlerwert: Weiß=0.16 (sehr präzise) /Schwarz=0.03 (makellos) .  OK:         	Weiß=2     	Schwarz=8     Stark:        	---       	Schwarz=1} 1/2-1/2

[Event "Austrian Bundesliga 2023-24"]
[Site "Austria"]
[Date "2024.03.21"]
[Round "8.2"]
[White "Horvath, Dominik"]
[Black "Handler, Lukas"]
[Result "1-0"]
[ECO "A06"]
[WhiteElo "2534"]
[BlackElo "2436"]
[Annotator "TA"]
[PlyCount "91"]
[EventDate "2023.10.21"]
[EventType "team-tourn"]
[EventCountry "AUT"]
[SourceTitle "playchess.com"]
[Source "ChessBase"]
[SourceQuality "1"]
[TimeControl "40/5400+30:1800+30"]

{[%evp 9,90,0,0,-21,-12,-16,16,19,27,27,17,12,23,6,12,18,30,4,24,19,18,11,31,19,22,9,7,11,14,10,26,32,31,19,29,29,36,10,8,4,26,15,14,6,9,15,16,0,-2,-76,-79,-82,-81,-108,-96,-87,-85,-98,-17,-13,0,0,0,0,0,0,2,7,5,7,5,3,16,8,29974,29975,29996,29997,29997,29998,29998,29999,29999]} 1. Nf3 {[%emt 0:00:19]} d5 {[%emt 0:00:21]} 2. g3 {[%emt 0:00:44]} g6 {[%emt 0:05:24]} 3. c4 {[%emt 0:01:48]} dxc4 {[%emt 0:01:08]} 4. Na3 {[%emt 0:00:06]} Bg7 {[%emt 0:02:33]} 5. Nxc4 {[%emt 0:00:08]} Nc6 {[%emt 0:02:26]} 6. d3 {[%emt 0:00:06]} e5 {[%emt 0:01:58][%cal Oe5e4]} 7. Bd2 {[%emt 0:00:09]} Qe7 {[%emt 0:06:51]} 8. Bc3 {[%emt 0:01:35] The position is equal.} (8. Bg2 $5) 8... Nh6 {[%emt 0:03:48]} 9. Bg2 {[%emt 0:04:29]} O-O {[%emt 0:02:41]} 10. O-O {[%emt 0:08:32]} Nf5 {[%emt 0:04:46]} 11. Rc1 {[%emt 0:00:24]} Rd8 {[%emt 0:10:14]} 12. Nfd2 {[%emt 0:01:49]} Ncd4 {[%emt 0:09:53]} 13. b3 {[%emt 0:08:34]} c6 {[%emt 0:06:38]} 14. Bb2 {[%emt 0:00:19]} f6 {[%emt 0:04:37]} 15. e3 {[%emt 0:03:47]} Nb5 {[%emt 0:03:23]} 16. Qc2 {[%emt 0:09:12]} Nbd6 {[%emt 0:04:07]} 17. Nxd6 {[%emt 0:03:40]} Nxd6 {[%emt 0:02:39]} 18. d4 {[%emt 0:00:34]} exd4 {[%emt 0:00:58]} 19. Bxd4 {[%emt 0:05:10]} Be6 {[%emt 0:02:12]} 20. Rfd1 {[%emt 0:04:26]} Qf7 {[%emt 0:03:48]} 21. Bb2 {[%emt 0:10:06]} Rac8 {[%emt 0:03:11]} 22. Nf3 {[%emt 0:02:48]} Bd5 {[%emt 0:05:31]} 23. Qc5 {[%emt 0:03:02]} b6 {[%emt 0:03:33]} 24. Qc2 {[%emt 0:01:45]} Qe8 {[%emt 0:04:43]} 25. Qe2 {[%emt 0:00:36]} Nf7 {[%emt 0:01:47]} 26. Qa6 {[%emt 0:01:51]} Rc7 {[%emt 0:00:57]} 27. Qa4 {[%emt 0:06:04]} Rcd7 {[%emt 0:02:08]} 28. Re1 {[%emt 0:01:24]} c5 {[%emt 0:01:22]} 29. Qh4 {[%emt 0:02:12]} (29. e4 $11 Be6 30. h4) 29... f5 $17 {[%emt 0:00:39]} 30. Bxg7 {[%emt 0:00:09]} Kxg7 {[%emt 0:00:06]} 31. b4 {[%emt 0:00:54]} Bxf3 {[%emt 0:01:00]} ({Inferior is} 31... Bxa2 32. bxc5 bxc5 33. Qa4 $16 (33. Rxc5 Bd5 $16)) 32. Bxf3 {[%emt 0:00:14]} Ne5 {[%emt 0:00:35][%cal Bf7e5,Be5d3,Bd3c1][%mdl 32]} 33. Be2 {[%emt 0:02:35]} Rd2 {[%emt 0:00:17]} (33... c4 $1 $17 {Hoping for ...Rd2.} 34. a4 Qf8) 34. Qf4 $1 $11 {[%emt 0:01:35]} (34. bxc5 $2 {loses.} Rxe2 35. Rxe2 Nf3+ 36. Kg2 Nxh4+ $19) 34... Rxe2 {[%emt 0:00:37]} 35. Rxe2 {[%emt 0:00:10]} Nd3 {[%emt 0:00:11][%csl LRb4,LRc1,LRf4]} 36. Qc4 {[%emt 0:00:25]} (36. Qc7+ $2 Rd7 37. Qc6 Nxc1 $17) 36... Nxc1 {[%emt 0:00:42]} 37. Qxc1 {[%emt 0:00:12][%mdl 4096] Endgame. KQR-KQR} Qb5 {[%emt 0:00:42]} 38. Qb2+ {[%emt 0:01:44]} Kh6 $132 {[%emt 0:00:26][%mdl 2048] Black has counterplay} 39. bxc5 {[%emt 0:01:30]} Qxc5 {[%emt 0:00:35]} 40. e4 fxe4 {[%emt 0:00:00]} (40... Qc6 {simplifies} 41. Qb1 fxe4 42. Rxe4 Re8) 41. Rxe4 {[%emt 0:08:30]} Rd5 $2 {[%emt 0:22:37][%mdl 8192] [#] Black cannot hold the game after this.} (41... Rd1+ $11 42. Kg2 Qd5) 42. Qf6 $1 {[%emt 0:06:48] White mates.} Rf5 {[%emt 0:01:44]} 43. Rh4+ {[%emt 0:00:28]} Rh5 {[%emt 0:00:14]} 44. Rxh5+ {[%emt 0:00:09]} Qxh5 {[%emt 0:00:04]} 45. Qf8+ {[%emt 0:00:03]} Kg5 {[%emt 0:00:04]} 46. Qf4# {[%emt 0:00:02] Weighted Error Value: White=0.08 (flawless) /Black=0.27 (precise) .  Loses game:     	---       	Black=1      Mistake:       	White=1     	Black=1      Inaccurate:     	White=3     	Black=1      OK:         	White=16    	Black=15     Best:        	---       	Black=1      Strong:       	White=2     	---} 1-0

[Event "Austrian Bundesliga 2023-24"]
[Site "Austria"]
[Date "2024.03.21"]
[Round "8.3"]
[White "Bauer, Sebastian"]
[Black "Samunenkov, Ihor"]
[Result "0-1"]
[ECO "B48"]
[WhiteElo "2337"]
[BlackElo "2544"]
[Annotator "RC"]
[PlyCount "120"]
[EventDate "2023.10.21"]
[EventType "team-tourn"]
[EventCountry "AUT"]
[SourceTitle "playchess.com"]
[Source "ChessBase"]
[SourceQuality "1"]
[TimeControl "40/5400+30:1800+30"]

1. e4 {[%emt 0:00:03]} c5 {[%emt 0:00:12]} 2. Nf3 {[%emt 0:00:20]} e6 {[%emt 0:00:13]} 3. Nc3 {[%emt 0:06:06]} Nc6 {[%emt 0:02:01]} 4. d4 {[%emt 0:01:17]} cxd4 {[%emt 0:00:15]} 5. Nxd4 {[%emt 0:00:06]} Qc7 {[%emt 0:00:12]} 6. Be3 {[%emt 0:00:12]} a6 {[%emt 0:00:22]} 7. Qf3 {[%emt 0:02:08]} h5 {[%emt 0:00:19]} 8. Nxc6 {[%emt 0:00:46]} Qxc6 {[%emt 0:01:58]} 9. Bd3 {[%emt 0:01:35]} b5 {[%emt 0:06:49]} 10. O-O-O {[%emt 0:05:30]} Bb7 {[%emt 0:09:07]} 11. Kb1 {[%emt 0:03:20]} b4 {[%emt 0:18:32]} 12. Ne2 {[%emt 0:04:04]} Nf6 {[%emt 0:04:13]} 13. Nd4 {[%emt 0:26:46]} Qc7 {[%emt 0:00:43]} 14. Rhe1 {[%emt 0:14:25]} Be7 {[%emt 0:06:25]} 15. h3 {[%emt 0:04:08]} h4 {[%emt 0:11:29]} 16. Bc1 {[%emt 0:04:58]} d5 {[%emt 0:10:06]} 17. exd5 {[%emt 0:05:55]} Bxd5 {[%emt 0:02:55]} 18. Qe2 {[%emt 0:00:13]} Kf8 {[%emt 0:02:50]} 19. Nf3 {[%emt 0:08:49]} Rc8 {[%emt 0:12:57]} 20. Ne5 {[%emt 0:02:10]} Bd6 {[%emt 0:01:51]} 21. f4 {[%emt 0:01:18]} a5 {[%emt 0:01:21]} 22. Ba6 {[%emt 0:04:02]} Rb8 {[%emt 0:02:48]} 23. Bb5 {[%emt 0:02:45]} Bxg2 {[%emt 0:03:11]} 24. Bc4 {[%emt 0:00:39]} Be4 {[%emt 0:00:49]} 25. Bb3 {[%emt 0:00:50]} Bc5 {[%emt 0:00:49]} 26. Qc4 {[%emt 0:00:32]} Bd5 {[%emt 0:00:18]} 27. Qe2 {[%emt 0:00:12]} Bxb3 {[%emt 0:00:32]} 28. axb3 {[%emt 0:00:05]} g6 {[%emt 0:00:26]} 29. Qc4 {[%emt 0:00:49]} Rc8 {[%emt 0:00:36]} 30. f5 {[%emt 0:00:46]} gxf5 {[%emt 0:00:33]} 31. Bg5 {[%emt 0:00:17]} Be7 {[%emt 0:00:33]} 32. Bxf6 {[%emt 0:00:52]} Bxf6 {[%emt 0:00:06]} 33. Nd7+ {[%emt 0:00:21]} Ke7 {[%emt 0:00:17]} 34. Qe2 {[%emt 0:00:39]} Rcd8 {[%emt 0:00:59]} 35. Nxf6 {[%emt 0:00:28]} Rxd1+ {[%emt 0:00:22]} 36. Qxd1 {[%emt 0:00:08]} Kxf6 {[%emt 0:00:11]} 37. Qd2 {[%emt 0:00:24]} Qd8 {[%emt 0:01:06]} 38. Qf4 {[%emt 0:00:31]} Qb8 {[%emt 0:00:29]} 39. Qd4+ {[%emt 0:00:14]} e5 {[%emt 0:00:21]} 40. Qc5 {[%emt 0:00:00]} Rc8 {[%emt 0:00:00]} 41. Qf2 {[%emt 0:03:27]} Ke6 {[%emt 0:15:11]} 42. Rf1 {[%emt 0:01:13]} f4 {[%emt 0:00:13]} 43. Qxh4 {[%emt 0:00:18]} Rg8 {[%emt 0:03:24]} 44. Qe1 {[%emt 0:08:37]} Kf6 {[%emt 0:04:37]} 45. Qh4+ {[%emt 0:02:00]} Rg5 {[%emt 0:02:46]} 46. Rd1 {[%emt 0:07:40]} Kg6 {[%emt 0:02:43]} 47. Rd5 {[%emt 0:00:34]} Qc8 {[%emt 0:03:43]} 48. Rd6+ {[%emt 0:08:53]} f6 {[%emt 0:00:06]} 49. Qf2 {[%emt 0:01:12]} Qc7 {[%emt 0:01:37]} 50. Qd2 {[%emt 0:00:48]} f3 {[%emt 0:00:53]} 51. h4 {[%emt 0:02:02]} Rf5 {[%emt 0:00:59]} 52. Rd7 {[%emt 0:00:26]} Qc5 {[%emt 0:00:28]} 53. Qh2 {[%emt 0:00:13]} f2 {[%emt 0:00:31]} 54. Qg2+ {[%emt 0:00:01]} Kh6 {[%emt 0:00:13]} 55. Qg7+ {[%emt 0:01:15]} Kh5 {[%emt 0:00:06]} 56. Qh7+ {[%emt 0:00:03]} Kg4 {[%emt 0:00:05]} 57. Qg6+ {[%emt 0:00:21]} Kf4 {[%emt 0:00:13]} 58. Qg2 {[%emt 0:00:59]} Qe3 {[%emt 0:01:12]} 59. Rg7 {[%emt 0:00:02]} Qe2 {[%emt 0:01:10]} 60. Ka2 {[%emt 0:01:07]} f1=Q {[%emt 0:00:26]} 0-1